[Event "*** Titled Tuesday Blitz"]
[Site "Chess.com"]
[Date "2020.11.10"]
[Round "4"]
[White "giantslayer83"]
[Black "keepitcoming"]
[Result "1-0"]
[WhiteElo "2707"]
[BlackElo "2506"]
[TimeControl "180+1"]
[EndTime "10:41:50 PST"]
[Termination "giantslayer83 won on time"]

1. d4 {[%clk 0:03:00.9]} 1... d5 {[%clk 0:02:56.8]} 2. Bf4 {[%clk 0:02:59.6]}
2... Nf6 {[%clk 0:02:53.8]} 3. e3 {[%clk 0:03:00]} 3... Bf5 {[%clk 0:02:52.7]}
4. Nf3 {[%clk 0:02:53.4]} 4... e6 {[%clk 0:02:48.6]} 5. c4 {[%clk 0:02:53.2]}
5... Bxb1 {[%clk 0:02:44.4]} 6. Rxb1 {[%clk 0:02:49.4]} 6... Bb4+ {[%clk
0:02:42.6]} 7. Ke2 {[%clk 0:02:50]} 7... dxc4 {[%clk 0:02:35.6]} 8. Qa4+ {[%clk
0:02:48.8]} 8... Nc6 {[%clk 0:02:27.8]} 9. Ne5 {[%clk 0:02:49.1]} 9... Bd6
{[%clk 0:01:55.9]} 10. Nxc6 {[%clk 0:02:47.3]} 10... bxc6 {[%clk 0:01:56.8]} 11.
Qxc6+ {[%clk 0:02:47.3]} 11... Ke7 {[%clk 0:01:52.3]} 12. Bg5 {[%clk 0:02:47]}
12... h6 {[%clk 0:01:46.1]} 13. Bxf6+ {[%clk 0:02:44.5]} 13... gxf6 {[%clk
0:01:47]} 14. Qxc4 {[%clk 0:02:45.1]} 14... Rb8 {[%clk 0:01:45]} 15. g3 {[%clk
0:02:30.7]} 15... Rb4 {[%clk 0:01:42.6]} 16. Qc6 {[%clk 0:02:30.4]} 16... Qb8
{[%clk 0:01:39.6]} 17. b3 {[%clk 0:02:30]} 17... a5 {[%clk 0:01:35.7]} 18. Kf3
{[%clk 0:02:20.9]} 18... h5 {[%clk 0:01:21.1]} 19. Bc4 {[%clk 0:02:07.6]} 19...
h4 {[%clk 0:01:19.1]} 20. Ke2 {[%clk 0:02:02.5]} 20... a4 {[%clk 0:01:17.2]} 21.
a3 {[%clk 0:01:56.7]} 21... Rb6 {[%clk 0:01:15]} 22. Qxa4 {[%clk 0:01:56.6]}
22... Qb7 {[%clk 0:01:05.1]} 23. b4 {[%clk 0:01:56.2]} 23... hxg3 {[%clk
0:00:56.4]} 24. fxg3 {[%clk 0:01:57.1]} 24... Bxg3 {[%clk 0:00:55.8]} 25. Kd3
{[%clk 0:01:42.2]} 25... f5 {[%clk 0:00:46.2]} 26. Qc2 {[%clk 0:01:38.6]} 26...
Qe4+ {[%clk 0:00:38.3]} 27. Kd2 {[%clk 0:01:38.5]} 27... Qg2+ {[%clk 0:00:37.8]}
28. Kc3 {[%clk 0:01:38.7]} 28... Qxc2+ {[%clk 0:00:34.1]} 29. Kxc2 {[%clk
0:01:39.6]} 29... Bxh2 {[%clk 0:00:27.6]} 30. a4 {[%clk 0:01:37.9]} 30... Rbb8
{[%clk 0:00:20.4]} 31. Kc3 {[%clk 0:01:33.3]} 31... Bd6 {[%clk 0:00:20.1]} 32.
Rxh8 {[%clk 0:01:32.9]} 32... Rxh8 {[%clk 0:00:21]} 33. a5 {[%clk 0:01:33.7]}
33... Kd7 {[%clk 0:00:17]} 34. a6 {[%clk 0:01:32.3]} 34... Ra8 {[%clk 0:00:14]}
35. Ra1 {[%clk 0:01:30.8]} 35... c6 {[%clk 0:00:13.5]} 36. b5 {[%clk 0:01:29.1]}
36... cxb5 {[%clk 0:00:11.7]} 37. Bxb5+ {[%clk 0:01:30]} 37... Kc7 {[%clk
0:00:12.1]} 38. Kd3 {[%clk 0:01:26.8]} 38... Kb6 {[%clk 0:00:12.3]} 39. Bc4
{[%clk 0:01:27.3]} 39... f4 {[%clk 0:00:10.4]} 40. Rb1+ {[%clk 0:01:27]} 40...
Kc7 {[%clk 0:00:09.9]} 41. Rb7+ {[%clk 0:01:26.9]} 41... Kc6 {[%clk 0:00:09.5]}
42. exf4 {[%clk 0:01:25.7]} 42... Bxf4 {[%clk 0:00:08.9]} 43. Rxf7 {[%clk
0:01:26.1]} 43... Bc7 {[%clk 0:00:06.6]} 44. Re7 {[%clk 0:01:21.9]} 44... Kd6
{[%clk 0:00:05.1]} 45. Rxe6+ {[%clk 0:01:21.6]} 45... Kd7 {[%clk 0:00:05.5]} 46.
Rh6 {[%clk 0:01:21.2]} 46... Bd6 {[%clk 0:00:04.5]} 47. Bb5+ {[%clk 0:01:17.7]}
47... Kc7 {[%clk 0:00:04.2]} 48. d5 {[%clk 0:01:16.4]} 48... Ra7 {[%clk
0:00:02.1]} 49. Kc4 {[%clk 0:01:15.6]} 49... Kb6 {[%clk 0:00:01.9]} 50. Rxd6+
{[%clk 0:01:15]} 1-0

[Event "*** Titled Tuesday Blitz"]
[Site "Chess.com"]
[Date "2020.11.10"]
[Round "4"]
[White "Evgeny81"]
[Black "Vsevolod_Ovchinnikov"]
[Result "1-0"]
[WhiteElo "2721"]
[BlackElo "2521"]
[TimeControl "180+1"]
[EndTime "10:41:51 PST"]
[Termination "Evgeny81 won on time"]

1. e4 {[%clk 0:03:00.9]} 1... e6 {[%clk 0:02:59.3]} 2. d4 {[%clk 0:03:00.8]}
2... d5 {[%clk 0:02:59.7]} 3. Nc3 {[%clk 0:03:01.2]} 3... Bb4 {[%clk 0:02:58.3]}
4. e5 {[%clk 0:03:00.7]} 4... c5 {[%clk 0:02:58.2]} 5. a3 {[%clk 0:02:58.9]}
5... Bxc3+ {[%clk 0:02:58.8]} 6. bxc3 {[%clk 0:02:59.8]} 6... Ne7 {[%clk
0:02:58.9]} 7. Qg4 {[%clk 0:02:59.4]} 7... cxd4 {[%clk 0:02:56.1]} 8. Qxg7
{[%clk 0:02:57.7]} 8... Rg8 {[%clk 0:02:56.7]} 9. Qxh7 {[%clk 0:02:58.1]} 9...
Qc7 {[%clk 0:02:57.1]} 10. Ne2 {[%clk 0:02:48.5]} 10... Nbc6 {[%clk 0:02:56.5]}
11. f4 {[%clk 0:02:45.9]} 11... dxc3 {[%clk 0:02:51.9]} 12. Qd3 {[%clk
0:02:45.4]} 12... d4 {[%clk 0:02:48.3]} 13. Nxd4 {[%clk 0:02:42.6]} 13... Nxd4
{[%clk 0:02:47.9]} 14. Qxd4 {[%clk 0:02:43.5]} 14... Bd7 {[%clk 0:02:45.4]} 15.
Rb1 {[%clk 0:02:36]} 15... Nf5 {[%clk 0:02:36]} 16. Qf2 {[%clk 0:02:35.8]} 16...
Qc6 {[%clk 0:02:29.9]} 17. Rg1 {[%clk 0:02:27.6]} 17... Qe4+ {[%clk 0:02:12.8]}
18. Qe2 {[%clk 0:02:27]} 18... Qd4 {[%clk 0:02:10.5]} 19. Rh1 {[%clk 0:02:26.2]}
19... Bc6 {[%clk 0:01:56.1]} 20. Rb4 {[%clk 0:02:25.8]} 20... Qd7 {[%clk
0:01:12.6]} 21. Kf2 {[%clk 0:02:00.6]} 21... O-O-O {[%clk 0:01:00.3]} 22. Be3
{[%clk 0:01:59.6]} 22... Kb8 {[%clk 0:00:53.3]} 23. Rg1 {[%clk 0:01:56.2]} 23...
Qe7 {[%clk 0:00:29.8]} 24. g3 {[%clk 0:01:51.2]} 24... Nxe3 {[%clk 0:00:22.8]}
25. Qxe3 {[%clk 0:01:48.8]} 25... Rd2+ {[%clk 0:00:22.9]} 26. Be2 {[%clk
0:01:49.4]} 26... Rh8 {[%clk 0:00:16.2]} 27. h4 {[%clk 0:01:45.7]} 27... a5
{[%clk 0:00:13.2]} 28. Rb3 {[%clk 0:01:39]} 28... Rhd8 {[%clk 0:00:10.7]} 29.
Rxc3 {[%clk 0:01:37.9]} 29... Bb5 {[%clk 0:00:10.5]} 30. Re1 {[%clk 0:01:35.9]}
30... Qd7 {[%clk 0:00:08.4]} 31. Kg1 {[%clk 0:01:22]} 31... Bxe2 {[%clk
0:00:05.7]} 32. Rxe2 {[%clk 0:01:22.9]} 32... Rd1+ {[%clk 0:00:06.1]} 33. Kh2
{[%clk 0:01:13.4]} 33... Qd5 {[%clk 0:00:04]} 34. Qf3 {[%clk 0:01:12.7]} 34...
Qb5 {[%clk 0:00:02.1]} 35. Rb3 {[%clk 0:01:09.3]} 35... Qa6 {[%clk 0:00:02.6]}
36. Kh3 {[%clk 0:01:02.4]} 36... Rc1 {[%clk 0:00:02.6]} 37. Rd3 {[%clk
0:00:58.2]} 37... Rc8 {[%clk 0:00:02.5]} 38. Red2 {[%clk 0:00:57.6]} 38... R1xc2
{[%clk 0:00:02.2]} 39. Rxc2 {[%clk 0:00:57.2]} 39... Rxc2 {[%clk 0:00:03.1]} 40.
h5 {[%clk 0:00:55.2]} 40... Qb6 {[%clk 0:00:01.6]} 41. h6 {[%clk 0:00:52.2]} 1-0

[Event "*** Titled Tuesday Blitz"]
[Site "Chess.com"]
[Date "2020.11.10"]
[Round "4"]
[White "vugarrasulov"]
[Black "smartinusa"]
[Result "1-0"]
[WhiteElo "2875"]
[BlackElo "2634"]
[TimeControl "180+1"]
[EndTime "10:41:52 PST"]
[Termination "vugarrasulov won on time"]

1. e4 {[%clk 0:03:00.9]} 1... c5 {[%clk 0:02:57.5]} 2. Nf3 {[%clk 0:03:00.2]}
2... Nc6 {[%clk 0:02:57]} 3. Nc3 {[%clk 0:03:00.2]} 3... e5 {[%clk 0:02:55.1]}
4. Bc4 {[%clk 0:02:59.4]} 4... Be7 {[%clk 0:02:45.6]} 5. d3 {[%clk 0:02:59.8]}
5... Nf6 {[%clk 0:02:43.2]} 6. Nd2 {[%clk 0:02:59.8]} 6... O-O {[%clk
0:02:39.5]} 7. Nf1 {[%clk 0:03:00]} 7... d6 {[%clk 0:02:30.6]} 8. Ne3 {[%clk
0:03:00.1]} 8... Be6 {[%clk 0:02:31.1]} 9. O-O {[%clk 0:03:00.2]} 9... Na5
{[%clk 0:02:24]} 10. Bd5 {[%clk 0:02:53.1]} 10... Rb8 {[%clk 0:02:20.6]} 11. a4
{[%clk 0:02:52.5]} 11... a6 {[%clk 0:02:11.4]} 12. Qf3 {[%clk 0:02:51.7]} 12...
b5 {[%clk 0:02:07.6]} 13. axb5 {[%clk 0:02:52.6]} 13... axb5 {[%clk 0:02:07.2]}
14. Nf5 {[%clk 0:02:48.7]} 14... Bxf5 {[%clk 0:02:02.5]} 15. Qxf5 {[%clk
0:02:48]} 15... b4 {[%clk 0:02:01.2]} 16. Ne2 {[%clk 0:02:48.4]} 16... Nxd5
{[%clk 0:01:52.6]} 17. exd5 {[%clk 0:02:49.3]} 17... c4 {[%clk 0:01:51.1]} 18.
Be3 {[%clk 0:02:32.5]} 18... g6 {[%clk 0:01:43.5]} 19. Qf3 {[%clk 0:02:32.7]}
19... cxd3 {[%clk 0:01:42.1]} 20. cxd3 {[%clk 0:02:33.6]} 20... Nb3 {[%clk
0:01:40.7]} 21. Ra7 {[%clk 0:02:30.9]} 21... Bg5 {[%clk 0:01:39.9]} 22. Ng3
{[%clk 0:02:18.5]} 22... f5 {[%clk 0:01:25.6]} 23. Qd1 {[%clk 0:01:58.7]} 23...
Bxe3 {[%clk 0:01:12.6]} 24. fxe3 {[%clk 0:01:59.6]} 24... Qb6 {[%clk 0:01:10.8]}
25. Re7 {[%clk 0:01:46.6]} 25... Qxe3+ {[%clk 0:01:09.4]} 26. Kh1 {[%clk
0:01:47.1]} 26... Nd4 {[%clk 0:00:49.7]} 27. Qa4 {[%clk 0:01:41.3]} 27... Rf7
{[%clk 0:00:38.2]} 28. Rxf7 {[%clk 0:01:40.4]} 28... Kxf7 {[%clk 0:00:38.2]} 29.
Qd7+ {[%clk 0:01:40.9]} 29... Kg8 {[%clk 0:00:35.2]} 30. Qxd6 {[%clk 0:01:41.3]}
30... Re8 {[%clk 0:00:31.8]} 31. Qd7 {[%clk 0:01:37.6]} 31... Rf8 {[%clk
0:00:32]} 32. d6 {[%clk 0:01:37.3]} 32... Qxd3 {[%clk 0:00:20.2]} 33. Qe7 {[%clk
0:01:37.7]} 33... Nc6 {[%clk 0:00:15.7]} 34. Qe6+ {[%clk 0:01:37.2]} 34... Kh8
{[%clk 0:00:15.5]} 35. d7 {[%clk 0:01:32.5]} 35... Rd8 {[%clk 0:00:09.2]} 36.
Qxc6 {[%clk 0:01:31.3]} 36... Qxd7 {[%clk 0:00:08.7]} 37. Qf6+ {[%clk
0:01:31.6]} 37... Kg8 {[%clk 0:00:08.3]} 38. Qxe5 {[%clk 0:01:32.1]} 38... Qd3
{[%clk 0:00:07.5]} 39. Qe6+ {[%clk 0:01:31.8]} 39... Kg7 {[%clk 0:00:06.6]} 40.
Qe7+ {[%clk 0:01:31.4]} 40... Kg8 {[%clk 0:00:06.7]} 41. Re1 {[%clk 0:01:31.6]}
41... Rd7 {[%clk 0:00:06.5]} 42. Qxb4 {[%clk 0:01:28.9]} 42... Kg7 {[%clk
0:00:04.9]} 43. Qf4 {[%clk 0:01:22]} 43... Qd2 {[%clk 0:00:03.1]} 44. Qe5+
{[%clk 0:01:22]} 44... Kf7 {[%clk 0:00:02.4]} 45. h3 {[%clk 0:01:22.2]} 45... h5
{[%clk 0:00:02.2]} 46. Nf1 {[%clk 0:01:20.1]} 46... Qd5 {[%clk 0:00:01.6]} 47.
Qe8+ {[%clk 0:01:18.8]} 47... Kg7 {[%clk 0:00:01.7]} 48. b4 {[%clk 0:01:19.7]}
48... Re7 {[%clk 0:00:02.2]} 49. Qxe7+ {[%clk 0:01:19.3]} 1-0

[Event "*** Titled Tuesday Blitz"]
[Site "Chess.com"]
[Date "2020.11.10"]
[Round "4"]
[White "SergeyShtyka"]
[Black "TurboSteen"]
[Result "0-1"]
[WhiteElo "2367"]
[BlackElo "2042"]
[TimeControl "180+1"]
[EndTime "10:41:55 PST"]
[Termination "TurboSteen won on time"]

1. e4 {[%clk 0:03:00.9]} 1... e6 {[%clk 0:02:42.5]} 2. Nf3 {[%clk 0:02:59.6]}
2... d5 {[%clk 0:02:40.6]} 3. e5 {[%clk 0:02:58.9]} 3... c5 {[%clk 0:02:27.7]}
4. b4 {[%clk 0:02:57.9]} 4... c4 {[%clk 0:02:24.5]} 5. a3 {[%clk 0:02:56.5]}
5... f6 {[%clk 0:02:23.2]} 6. d3 {[%clk 0:02:56.2]} 6... fxe5 {[%clk 0:02:21.7]}
7. Nxe5 {[%clk 0:02:56.3]} 7... cxd3 {[%clk 0:02:14.5]} 8. Bxd3 {[%clk
0:02:55.5]} 8... Nf6 {[%clk 0:02:12.5]} 9. O-O {[%clk 0:02:53.9]} 9... Bd6
{[%clk 0:02:11.5]} 10. Ng4 {[%clk 0:02:44.4]} 10... O-O {[%clk 0:02:06.8]} 11.
Bg5 {[%clk 0:02:41.1]} 11... e5 {[%clk 0:01:53.9]} 12. Nxf6+ {[%clk 0:02:33.3]}
12... gxf6 {[%clk 0:01:52.2]} 13. Bh6 {[%clk 0:02:33.6]} 13... Rf7 {[%clk
0:01:49.2]} 14. c4 {[%clk 0:02:32.7]} 14... d4 {[%clk 0:01:40.2]} 15. c5 {[%clk
0:02:28.4]} 15... Bc7 {[%clk 0:01:39.1]} 16. Bc4 {[%clk 0:02:27.2]} 16... Nc6
{[%clk 0:01:33.3]} 17. Nd2 {[%clk 0:02:22.9]} 17... Qe7 {[%clk 0:01:31.5]} 18.
Bxf7+ {[%clk 0:02:19.1]} 18... Qxf7 {[%clk 0:01:30.6]} 19. Ne4 {[%clk
0:02:14.7]} 19... Qg6 {[%clk 0:01:25.6]} 20. Qb3+ {[%clk 0:01:56.9]} 20... Kh8
{[%clk 0:01:20.3]} 21. b5 {[%clk 0:01:40.9]} 21... Na5 {[%clk 0:01:07.6]} 22.
Qf3 {[%clk 0:01:27.8]} 22... Qxh6 {[%clk 0:01:03.3]} 23. Nxf6 {[%clk 0:01:27.7]}
23... e4 {[%clk 0:00:48.2]} 24. Qh5 {[%clk 0:01:04.6]} 24... Qxf6 {[%clk
0:00:45.6]} 25. Qe8+ {[%clk 0:01:03.2]} 25... Kg7 {[%clk 0:00:43.1]} 26. Rae1
{[%clk 0:00:53.9]} 26... b6 {[%clk 0:00:28.9]} 27. c6 {[%clk 0:00:44.2]} 27...
Bh3 {[%clk 0:00:18.5]} 28. Qxa8 {[%clk 0:00:30.8]} 28... Qf4 {[%clk 0:00:17.1]}
0-1

[Event "*** Titled Tuesday Blitz"]
[Site "Chess.com"]
[Date "2020.11.10"]
[Round "4"]
[White "sofaceindisguise"]
[Black "plumalka"]
[Result "1-0"]
[WhiteElo "2675"]
[BlackElo "2472"]
[TimeControl "180+1"]
[EndTime "10:41:56 PST"]
[Termination "sofaceindisguise won by resignation"]

1. d4 {[%clk 0:02:57.8]} 1... Nf6 {[%clk 0:03:00.1]} 2. Bg5 {[%clk 0:02:56.4]}
2... Ne4 {[%clk 0:03:00]} 3. Bf4 {[%clk 0:02:55.6]} 3... c5 {[%clk 0:03:00.1]}
4. f3 {[%clk 0:02:51.7]} 4... Qa5+ {[%clk 0:02:59.8]} 5. c3 {[%clk 0:02:38.3]}
5... Nf6 {[%clk 0:02:56]} 6. d5 {[%clk 0:02:38.5]} 6... Qb6 {[%clk 0:02:55.7]}
7. b3 {[%clk 0:02:26.9]} 7... e6 {[%clk 0:01:54]} 8. e4 {[%clk 0:02:25.3]} 8...
exd5 {[%clk 0:01:54]} 9. exd5 {[%clk 0:02:25.6]} 9... Bd6 {[%clk 0:01:54.2]} 10.
Be3 {[%clk 0:02:24.8]} 10... O-O {[%clk 0:01:53.8]} 11. Nd2 {[%clk 0:02:25.3]}
11... Nxd5 {[%clk 0:01:53.4]} 12. Nc4 {[%clk 0:02:24.4]} 12... Qc6 {[%clk
0:01:44.3]} 13. Kf2 {[%clk 0:02:18.8]} 13... Nxe3 {[%clk 0:01:43.5]} 14. Nxe3
{[%clk 0:02:06.5]} 14... Bc7 {[%clk 0:01:43.2]} 15. Bc4 {[%clk 0:02:04.9]} 15...
d6 {[%clk 0:01:40]} 16. Nd5 {[%clk 0:02:04.2]} 16... Re8 {[%clk 0:01:38.8]} 17.
a4 {[%clk 0:02:01.7]} 17... b6 {[%clk 0:01:36]} 18. Ne2 {[%clk 0:02:01.5]} 18...
a6 {[%clk 0:01:35.7]} 19. Qd3 {[%clk 0:02:00.4]} 19... Be6 {[%clk 0:01:33.7]}
20. Nef4 {[%clk 0:01:59.8]} 20... Nd7 {[%clk 0:01:32.4]} 21. Nxe6 {[%clk
0:01:46.5]} 21... fxe6 {[%clk 0:01:33.3]} 22. Nxc7 {[%clk 0:01:46.6]} 22... Qxc7
{[%clk 0:01:32.4]} 23. Bxa6 {[%clk 0:01:47]} 23... Ne5 {[%clk 0:01:30.7]} 24.
Qe2 {[%clk 0:01:46.6]} 24... Qf7 {[%clk 0:01:27.8]} 25. Bb5 {[%clk 0:01:45.7]}
25... Rf8 {[%clk 0:01:26.5]} 26. Rhd1 {[%clk 0:01:46]} 26... Qh5 {[%clk
0:01:25.1]} 27. Kg1 {[%clk 0:01:44.7]} 27... d5 {[%clk 0:01:24.1]} 28. Re1
{[%clk 0:01:42.9]} 28... Rf5 {[%clk 0:01:22.3]} 29. f4 {[%clk 0:01:18.6]} 29...
Qxe2 {[%clk 0:01:17.9]} 30. Rxe2 {[%clk 0:01:19.5]} 30... Ng4 {[%clk 0:01:15.2]}
31. Rxe6 {[%clk 0:01:16.6]} 31... Rxf4 {[%clk 0:01:15.5]} 32. Rae1 {[%clk
0:01:13.4]} 32... Raf8 {[%clk 0:01:13.7]} 33. h3 {[%clk 0:01:13.2]} 33... Nf6
{[%clk 0:01:12.1]} 34. Rxb6 {[%clk 0:01:13.3]} 34... Ne4 {[%clk 0:01:12.1]} 35.
Bc6 {[%clk 0:01:10.4]} 35... Nxc3 {[%clk 0:01:11.4]} 36. a5 {[%clk 0:01:09.4]}
36... d4 {[%clk 0:01:10.7]} 37. Rb7 {[%clk 0:01:05.9]} 37... d3 {[%clk
0:01:08.5]} 38. Rd7 {[%clk 0:01:06.1]} 38... Rd4 {[%clk 0:01:07.4]} 39. Ree7
{[%clk 0:00:59.6]} 39... Rxd7 {[%clk 0:01:01.7]} 40. Rxd7 {[%clk 0:00:59.8]}
40... Ne2+ {[%clk 0:01:02.1]} 41. Kh2 {[%clk 0:00:59.8]} 41... Nd4 {[%clk
0:01:02.4]} 42. Bd5+ {[%clk 0:00:49.6]} 42... Kh8 {[%clk 0:01:02.1]} 43. Bf3
{[%clk 0:00:47.5]} 43... Nxb3 {[%clk 0:00:56.3]} 44. a6 {[%clk 0:00:46.9]} 44...
c4 {[%clk 0:00:53.6]} 45. a7 {[%clk 0:00:47.1]} 45... Nc5 {[%clk 0:00:49.2]} 46.
Rc7 {[%clk 0:00:44.2]} 46... Ne6 {[%clk 0:00:49.3]} 47. Rb7 {[%clk 0:00:43]}
47... Nc7 {[%clk 0:00:45.3]} 48. Rxc7 {[%clk 0:00:42.1]} 48... d2 {[%clk
0:00:44.2]} 49. Rxc4 {[%clk 0:00:41.2]} 49... h5 {[%clk 0:00:43.1]} 50. Rd4
{[%clk 0:00:41.3]} 1-0

[Event "*** Titled Tuesday Blitz"]
[Site "Chess.com"]
[Date "2020.11.10"]
[Round "4"]
[White "AldokhinIvan"]
[Black "JoachimMouhamad"]
[Result "1-0"]
[WhiteElo "2550"]
[BlackElo "2347"]
[TimeControl "180+1"]
[EndTime "10:41:57 PST"]
[Termination "AldokhinIvan won on time"]

1. d4 {[%clk 0:02:56.5]} 1... Nf6 {[%clk 0:02:59]} 2. c4 {[%clk 0:02:56.1]} 2...
g6 {[%clk 0:02:59.1]} 3. Nc3 {[%clk 0:02:55.8]} 3... d5 {[%clk 0:02:59.4]} 4.
Bf4 {[%clk 0:02:55.1]} 4... Bg7 {[%clk 0:02:58.5]} 5. cxd5 {[%clk 0:02:52.6]}
5... Nxd5 {[%clk 0:02:57.8]} 6. Nxd5 {[%clk 0:02:53.5]} 6... Qxd5 {[%clk
0:02:57.6]} 7. e3 {[%clk 0:02:50.5]} 7... Na6 {[%clk 0:02:34]} 8. Ne2 {[%clk
0:02:25.2]} 8... O-O {[%clk 0:02:29.3]} 9. Nc3 {[%clk 0:02:23.6]} 9... Qa5
{[%clk 0:02:28.3]} 10. Be2 {[%clk 0:02:15.9]} 10... c5 {[%clk 0:02:27.7]} 11.
O-O {[%clk 0:02:09]} 11... Rd8 {[%clk 0:02:26.5]} 12. d5 {[%clk 0:01:47.8]}
12... Nb4 {[%clk 0:02:00]} 13. e4 {[%clk 0:01:42]} 13... e6 {[%clk 0:01:54]} 14.
a3 {[%clk 0:01:38]} 14... Na6 {[%clk 0:01:48.2]} 15. Qb3 {[%clk 0:01:28.9]}
15... e5 {[%clk 0:01:17]} 16. Bg5 {[%clk 0:01:25.7]} 16... f6 {[%clk 0:01:13]}
17. Be3 {[%clk 0:01:16.5]} 17... Kh8 {[%clk 0:01:12.5]} 18. Rad1 {[%clk
0:01:09.9]} 18... Nc7 {[%clk 0:01:07.5]} 19. f4 {[%clk 0:00:46.9]} 19... exf4
{[%clk 0:00:56.8]} 20. Bxf4 {[%clk 0:00:46]} 20... Ne8 {[%clk 0:00:54.1]} 21. d6
{[%clk 0:00:45.7]} 21... Bd7 {[%clk 0:00:48.3]} 22. Qf7 {[%clk 0:00:44.5]} 22...
Rac8 {[%clk 0:00:31.4]} 23. Bc4 {[%clk 0:00:41.8]} 23... Nxd6 {[%clk 0:00:23.4]}
24. Rxd6 {[%clk 0:00:39.6]} 24... Bc6 {[%clk 0:00:17.2]} 25. Rfd1 {[%clk
0:00:34.5]} 25... Rxd6 {[%clk 0:00:16.9]} 26. Rxd6 {[%clk 0:00:30.3]} 26... Rf8
{[%clk 0:00:16.9]} 27. Qe7 {[%clk 0:00:26]} 27... a6 {[%clk 0:00:06.6]} 28. e5
{[%clk 0:00:22.3]} 28... fxe5 {[%clk 0:00:04.7]} 29. Bxe5 {[%clk 0:00:20.6]} 1-0

[Event "*** Titled Tuesday Blitz"]
[Site "Chess.com"]
[Date "2020.11.10"]
[Round "4"]
[White "BikingBrian"]
[Black "nakajo"]
[Result "0-1"]
[WhiteElo "2267"]
[BlackElo "2453"]
[TimeControl "180+1"]
[EndTime "10:41:57 PST"]
[Termination "nakajo won by resignation"]

1. d4 {[%clk 0:03:00.9]} 1... d5 {[%clk 0:02:58.8]} 2. Bf4 {[%clk 0:02:58.3]}
2... Nf6 {[%clk 0:02:58.3]} 3. e3 {[%clk 0:02:58.6]} 3... c5 {[%clk 0:02:54.6]}
4. Nc3 {[%clk 0:02:58.8]} 4... e6 {[%clk 0:02:52.7]} 5. Nb5 {[%clk 0:02:57.8]}
5... Na6 {[%clk 0:02:52.4]} 6. Nf3 {[%clk 0:02:52]} 6... Be7 {[%clk 0:02:49.9]}
7. Be2 {[%clk 0:02:50.5]} 7... O-O {[%clk 0:02:46.3]} 8. O-O {[%clk 0:02:50.3]}
8... Ne4 {[%clk 0:02:24.3]} 9. c4 {[%clk 0:02:37.7]} 9... cxd4 {[%clk
0:02:07.6]} 10. Nbxd4 {[%clk 0:02:32.6]} 10... Nac5 {[%clk 0:02:03.2]} 11. cxd5
{[%clk 0:02:30.7]} 11... exd5 {[%clk 0:01:47.2]} 12. b4 {[%clk 0:02:22.6]} 12...
Nc3 {[%clk 0:01:41.1]} 13. Qc2 {[%clk 0:02:11.8]} 13... Nxe2+ {[%clk 0:01:38]}
14. Qxe2 {[%clk 0:02:11.7]} 14... Ne4 {[%clk 0:01:27.1]} 15. a3 {[%clk
0:02:08.1]} 15... Bg4 {[%clk 0:01:24.6]} 16. h3 {[%clk 0:02:06.4]} 16... Bh5
{[%clk 0:01:24.3]} 17. Rfc1 {[%clk 0:02:01.5]} 17... Rc8 {[%clk 0:01:19.7]} 18.
Qb2 {[%clk 0:01:59.8]} 18... Bf6 {[%clk 0:01:04.8]} 19. Ne5 {[%clk 0:01:24.8]}
19... Qe7 {[%clk 0:00:48.3]} 20. Nd3 {[%clk 0:01:23.6]} 20... Bg6 {[%clk
0:00:43.7]} 21. Rxc8 {[%clk 0:01:17.3]} 21... Rxc8 {[%clk 0:00:43.3]} 22. Rc1
{[%clk 0:01:17.3]} 22... Rxc1+ {[%clk 0:00:37.8]} 23. Qxc1 {[%clk 0:01:18.2]}
23... h6 {[%clk 0:00:37.8]} 24. Qc8+ {[%clk 0:01:07.8]} 24... Kh7 {[%clk
0:00:37.8]} 25. Nf5 {[%clk 0:01:04.4]} 25... Qe6 {[%clk 0:00:33.2]} 26. Qxe6
{[%clk 0:00:39.8]} 26... fxe6 {[%clk 0:00:34.1]} 27. Nd6 {[%clk 0:00:38.5]}
27... Nxd6 {[%clk 0:00:33.6]} 28. Bxd6 {[%clk 0:00:36.8]} 28... Bxd3 {[%clk
0:00:33.8]} 29. f4 {[%clk 0:00:34.1]} 29... d4 {[%clk 0:00:32.7]} 30. Kf2 {[%clk
0:00:32.9]} 30... a6 {[%clk 0:00:31.4]} 31. g4 {[%clk 0:00:30.7]} 31... Be4
{[%clk 0:00:30.2]} 32. exd4 {[%clk 0:00:28.5]} 32... Bxd4+ {[%clk 0:00:31.1]}
33. Kg3 {[%clk 0:00:26.5]} 33... Bc6 {[%clk 0:00:29.7]} 34. f5 {[%clk
0:00:25.3]} 34... exf5 {[%clk 0:00:30]} 35. gxf5 {[%clk 0:00:26.2]} 35... Bb2
{[%clk 0:00:30.1]} 36. a4 {[%clk 0:00:26]} 36... Bxa4 {[%clk 0:00:28.6]} 37. Kf4
{[%clk 0:00:26.9]} 37... Bc6 {[%clk 0:00:28.8]} 38. h4 {[%clk 0:00:25.6]} 38...
Bc3 {[%clk 0:00:27.5]} 39. Kg4 {[%clk 0:00:23.3]} 39... a5 {[%clk 0:00:26.5]}
40. bxa5 {[%clk 0:00:22.9]} 40... Bxa5 {[%clk 0:00:27.4]} 41. Ba3 {[%clk
0:00:22.3]} 41... Bc3 {[%clk 0:00:27.6]} 42. Kf4 {[%clk 0:00:22.4]} 42... b5
{[%clk 0:00:27.9]} 43. Ke3 {[%clk 0:00:22]} 43... b4 {[%clk 0:00:28.4]} 44. Bc1
{[%clk 0:00:22.2]} 44... b3 {[%clk 0:00:28]} 45. Kd3 {[%clk 0:00:22.7]} 45... b2
{[%clk 0:00:27.3]} 0-1